Cogmind - Beta 10.2 @@@ ROGUE MODE // 2022.01.11 @ 20:14:33 Player: Crud Result: Destroyed by G-47 Trooper with Particle Gun Performance ------------- Evolutions (3) 1500 Regions Visited (8) 1600 Robots Destroyed (59) 295 Value Destroyed (2034) 2034 Prototype IDs (26) 520 Alien Tech Used (0) 0 Bonus (1450) 1450 TOTAL SCORE: 7399 Bonus ------- High Alert Combat Kills 184 Follower Combat Kills 66 Entered Garrisons 400 Used RIF Installer 500 Aligned with FarCom 300 Cogmind --------- Core Integrity 0/700 Matter 259/300 Energy 100/100 System Corruption 0% Temperature Cool (9) Movement Core (50) Location -7/Garrison Parts ------- > --- POWER (1) -------- (None) > --- PROPULSION (3) --- (None) > --- UTILITY (5) ------ Improved Heat Sink Advanced Visual Processing Unit Targeting Computer Power Shielding Hacking Suite > --- WEAPON (4) ------- (None) > --- INVENTORY (4) ---- Improved Light Armor Plating Recalibrator AWS/Gauss Peak State ------------ > --- POWER ------------ Light Angular Momentum Engine > --- PROPULSION ------- Light Treads Light Treads Advanced Treads > --- UTILITY ---------- Medium Storage Unit Advanced Visual Processing Unit Light Armor Plating Hacking Suite Recalibrator > --- WEAPON ----------- Plasma Cannon Plasma Cannon AWS/Gauss > --- INVENTORY -------- Light Nuclear Core Light Treads Targeting Computer Power Shielding Shock Rifle Rocket Launcher [Rating: 47] Favorites ----------- Power Light Nuclear Core Engine Light Angular Momentum Engine Power Core Light Nuclear Core Propulsion Light Treads Treads Light Treads Leg Aluminum Leg Utility Medium Storage Unit Device Improved Heat Sink Storage Medium Storage Unit Processor Advanced Visual Processing Unit Hackware Hacking Suite Protection Light Armor Plating Weapon AWS/Gauss Energy Gun EM Pulse Gun Energy Cannon Plasma Cannon Ballistic Gun AWS/Gauss Launcher Rocket Launcher Special Weapon Plasma Cutter Build | -11 -10 -10 -10 -9 -8 -8 -7 -7 ------- Run | Scr Mat Min Exi Min Mat Gar Fac Gar Slots Evolved 6 | . . . . . 4 . 2 . Power . | . . . . . . . . . Propulsion 1 | . . . . . 1 . . . Utility 3 | . . . . . 2 . 1 . Weapon 2 | . . . . . 1 . 1 . Parts Attached 53 | 4 4 4 2 2 13 1 4 19 Power 6 | 1 . 1 . . 1 1 . 2 Engine 2 | 1 . . . . . 1 . . Core 4 | . . 1 . . 1 . . 2 Reactor . | . . . . . . . . . Propulsion 12 | 2 . . 1 1 3 . . 5 Treads 11 | 2 . . 1 1 3 . . 4 Leg 1 | . . . . . . . . 1 Wheel . | . . . . . . . . . Hover . | . . . . . . . . . Flight . | . . . . . . . . . Utility 18 | . 3 1 1 . 4 . 3 6 Device 7 | . 2 1 . . . . 1 3 Storage 2 | . 1 . 1 . . . . . Processor 2 | . . . . . 1 . 1 . Hackware 1 | . . . . . 1 . . . Protection 6 | . . . . . 2 . 1 3 Artifact . | . . . . . . . . . Weapon 17 | 1 1 2 . 1 5 . 1 6 Energy Gun 6 | . 1 1 . . 2 . . 2 Energy Cannon 3 | . . . . . 1 . 1 1 Ballistic Gun 5 | 1 . . . 1 1 . . 2 Ballistic Cannon . | . . . . . . . . . Launcher 2 | . . 1 . . . . . 1 Special Weapon 1 | . . . . . 1 . . . Impact Weapon . | . . . . . . . . . Slashing Weapon . | . . . . . . . . . Piercing Weapon . | . . . . . . . . . Special Melee Weapon . | . . . . . . . . . Unidentified Prototypes 1 | . . . . . 1 . . . Parts Lost 22 | . . 2 . . 1 . . 19 Power 3 | . . . . . . . . 3 Propulsion 7 | . . . . . . . . 7 Utility 3 | . . . . . 1 . . 2 Weapon 9 | . . 2 . . . . . 7 Highest Loss Streak 10 | . . 1 . . 1 . . 10 Average Slot Usage (%) 90 | . 87 99 100 84 89 90 90 68 Engine 3 | . 14 4 . . . 8 7 . Core 7 | . . 9 14 14 9 . . . Treads 25 | . 28 28 28 28 27 27 23 11 Device 8 | . 6 14 14 14 6 . 1 3 Storage 11 | . 9 14 14 14 9 9 7 5 Processor 4 | . . . . . 6 9 13 15 Hackware 3 | . . . . . 2 9 7 7 Protection 3 | . . . . . 11 9 6 4 Energy Gun 4 | . 14 13 . . 4 . . 9 Energy Cannon 3 | . . . . . 1 9 15 5 Ballistic Gun 11 | . 14 14 14 13 11 9 7 1 Launcher 3 | . . . 14 . . . . . Naked Turns . | . . . . . . . . . Heaviest Build 49 | 7 14 16 20 24 33 37 49 49 Greatest Support 62 | 40 40 40 40 40 62 62 62 62 Greatest Overweight (x) 12 | . . . . . . . . 12 Average Overweight (x) . | . . . . . . . . . Largest Inventory Capacity 8 | 4 6 6 8 8 8 8 8 8 Average Capacity 7 | 4 5 6 7 8 8 8 8 7 Most Carried 8 | 4 5 6 8 8 8 8 8 8 Average Carried 6 | 3 4 5 6 7 7 7 7 5 Final Capacity 8 | 4 6 6 8 8 8 8 8 4 Final Carried 8 | 4 4 5 8 8 8 8 8 4 Class Distribution -------------------- 56% | Mutant 40% | Skirmisher Dominant Class ---------------- Mutant | -10/Materials Mutant | -10/Mines Mutant | -10/Exiles Mutant | -9/Mines Skirmisher | -8/Materials Skirmisher | -8/Garrison Skirmisher | -7/Factory Skirmisher | -7/Garrison Resources | -11 -10 -10 -10 -9 -8 -8 -7 -7 ----------- Run | Scr Mat Min Exi Min Mat Gar Fac Gar Matter Collected 788 | 237 63 74 . 79 123 20 . 192 Remotely . | . . . . . . . . . Salvage Created 2302 | . 31 112 . 32 1040 837 . 250 Parts 145 | . 1 6 . 2 72 51 . 13 Haulers Intercepted 1 | . . . . . 1 . . . Recyclers Shooed . | . . . . . . . . . Parts Field Recycled . | . . . . . . . . . Retrieved Matter . | . . . . . . . . . Parts Self-Destructed . | . . . . . . . . . Prevented . | . . . . . . . . . Kills | -11 -10 -10 -10 -9 -8 -8 -7 -7 ------- Run | Scr Mat Min Exi Min Mat Gar Fac Gar Combat Hostiles Destroyed 50 | . 2 3 . 1 16 22 . 6 Melee 2 | . . . . . . . . 2 Guns 41 | . 2 3 . 1 16 18 . 1 Cannons 5 | . . . . . . 4 . 1 AOE 1 | . . . . . . . . 1 Classes Destroyed 11 | . 1 3 . . 6 1 . . Worker 1 | . . . . . 1 . . . Hauler 1 | . . . . . 1 . . . Recycler 1 | . . . . . 1 . . . Operator 1 | . . . . . 1 . . . Watcher 5 | . . . . . 4 1 . . Swarmer 14 | . 2 . . . 3 8 . 1 Grunt 21 | . . 1 . 1 7 11 . 1 Protector 1 | . . . . . . 1 . . Sentry 11 | . . 1 . . 5 1 . 4 Demolisher 2 | . . 1 . . . 1 . . Hunter 1 | . . . . . 1 . . . Best Kill Streak 8 | . 2 1 . 1 8 6 . 2 Combat Bots Only 6 | . 2 1 . 1 6 6 . 2 Max Kills in Single Turn 2 | . 1 1 . 1 1 2 . 1 Gunslinging . | . . . . . . . . . Exploded 1 | . . . . . . . . 1 Melee 1 | . . . . . . . . 1 Uniques/NPCs Destroyed . | . . . . . . . . . Combat | -11 -10 -10 -10 -9 -8 -8 -7 -7 -------- Run | Scr Mat Min Exi Min Mat Gar Fac Gar Damage Taken 3933 | . 170 498 . 20 260 397 . 2588 Core 992 | . 46 164 . 10 . 70 . 702 Absorbed by Shields . | . . . . . . . . . Core Remaining (%) 66 | 100 . . . 12 . 87 . . Volleys Fired 81 | . 12 15 . . 11 25 . 18 Largest 3 | . 2 2 . . 1 1 . 3 Hottest 210 | . 70 70 . . 50 80 . 210 Shots Fired 258 | . 24 26 . 3 78 90 . 37 Gun 210 | . 24 24 . 3 78 65 . 16 Cannon 39 | . . . . . . 25 . 14 Launcher 9 | . . 2 . . . . . 7 Special . | . . . . . . . . . Kinetic 174 | . 12 15 . 3 68 65 . 11 Thermal 56 | . 12 2 . . . 25 . 17 Explosive 9 | . . 2 . . . . . 7 Electromagnetic 19 | . . 7 . . 10 . . 2 Robot Hit Streak 37 | . 5 5 . 7 16 24 . 37 Robot Miss Streak 8 | . 8 1 . . 3 2 . 3 Penetration Max . | . . . . . . . . . Secondary Targets . | . . . . . . . . . Autonomous 143 | . . . . 3 67 65 . 8 Shots Hit Robots 198 | . 9 19 . 3 63 74 . 30 Core Hits 95 | . 2 8 . 1 30 32 . 22 Critical Hits 1 | . . . . . . 1 . . Critical Kills 1 | . . . . . . 1 . . Critical Parts Destroyed . | . . . . . . . . . Melee Attacks . | . . . . . . . . . Impact . | . . . . . . . . . Slashing . | . . . . . . . . . Piercing . | . . . . . . . . . Sneak Attacks . | . . . . . . . . . Combat Hostiles . | . . . . . . . . . Follow-up Attacks . | . . . . . . . . . Damage Inflicted 5454 | . 100 219 . 94 1933 2255 . 853 Guns 4527 | . 100 194 . 94 1933 1892 . 314 Cannons 648 | . . . . . . 363 . 285 Explosions 223 | . . 25 . . . . . 198 Melee . | . . . . . . . . . Ramming 56 | . . . . . . . . 56 Kinetic 4232 | . 49 116 . 94 1826 1892 . 255 Thermal 768 | . 51 26 . . . 363 . 328 Explosive 223 | . . 25 . . . . . 198 Electromagnetic 175 | . . 52 . . 107 . . 16 Impact . | . . . . . . . . . Slashing . | . . . . . . . . . Piercing . | . . . . . . . . . Highest Corruption . | . . . . . . . . . Average Corruption . | . . . . . . . . . Corruption Purged . | . . . . . . . . . Overload Shots . | . . . . . . . . . Overflow Damage 12 | . . . . . . 12 . . Projectiles 12 | . . . . . . 12 . . Explosions . | . . . . . . . . . Melee . | . . . . . . . . . Knockbacks . | . . . . . . . . . Impact . | . . . . . . . . . Kinetic . | . . . . . . . . . Secondary . | . . . . . . . . . Self-Inflicted Damage 59 | . . 22 . . . . . 37 Shots 2 | . . 1 . . . . . 1 Rammed 12 | . . . . . . . . 12 Targets Rammed 14 | . . . . . . . . 14 Kicked 2 | . . . . . . . . 2 Crushed . | . . . . . . . . . Highest Temperature 501 | . 72 18 . . 49 235 . 501 Average Temperature 99 | . 28 12 . . 20 73 . 221 Received Heat Transfer 861 | . . 108 . 12 72 117 . 552 Effects 9 | . . . . . . . . 9 Interference 1 | . . . . . . . . 1 Matter Decay 1 | . . . . . . . . 1 Damage (minor) 4 | . . . . . . . . 4 Damage (major) 3 | . . . . . . . . 3 Siege Activations . | . . . . . . . . . Robots Corrupted . | . . . . . . . . . Combat Hostiles . | . . . . . . . . . Parts Fried . | . . . . . . . . . Impact Corruptions . | . . . . . . . . . Robots Melted 1 | . . . . . . . . 1 Combat Hostiles 1 | . . . . . . . . 1 Parts Melted 4 | . . 2 . . . 1 . 1 Heat Transferred 1485 | . 148 74 . . . 613 . 650 Parts Sabotaged . | . . . . . . . . . Parts Stolen . | . . . . . . . . . Parts Stripped . | . . . . . . . . . Power Chain Reactions . | . . . . . . . . . Missiles Intercepted . | . . . . . . . . . Alert | -11 -10 -10 -10 -9 -8 -8 -7 -7 ------- Run | Scr Mat Min Exi Min Mat Gar Fac Gar Peak Influence 841 | . 55 91 . 67 418 841 441 404 Initial 441 | . . 21 . . 26 271 441 308 Average 276 | . 17 29 . 10 186 657 441 344 Maximum Alert Level 3 | . . . . . 2 3 2 2 Low Security (%) 50 | 100 100 100 . 100 66 . . . Level 1 19 | . . . . . 13 8 . 98 Level 2 16 | . . . . . 20 44 100 1 Level 3 13 | . . . . . . 46 . . Level 4 . | . . . . . . . . . Level 5 . | . . . . . . . . . High Security . | . . . . . . . . . Max Security . | . . . . . . . . . Squads Dispatched 3 | . 1 . . . 2 . . . Investigation 1 | . 1 . . . . . . . Extermination . | . . . . . . . . . Reinforcement 1 | . . . . . 1 . . . Assault . | . . . . . . . . . Garrison 1 | . . . . . 1 . . . Intercept . | . . . . . . . . . Construction Impeded 1 | . . . . . 1 . . . Haulers Reinforced . | . . . . . . . . . Stealth | -11 -10 -10 -10 -9 -8 -8 -7 -7 --------- Run | Scr Mat Min Exi Min Mat Gar Fac Gar Distress Signals 3 | . . . . . 2 1 . . Communications Jammed . | . . . . . . . . . Distress Signals . | . . . . . . . . . Times Spotted 76 | . 4 9 . 2 20 24 . 17 Peak Tracking Total 8 | . 3 2 . 2 4 8 . 5 Tactical Retreats 10 | . . 1 . . . 4 . 5 Traps | -11 -10 -10 -10 -9 -8 -8 -7 -7 ------- Run | Scr Mat Min Exi Min Mat Gar Fac Gar Traps Triggered 3 | . 1 . . . . . . 2 Indirectly . | . . . . . . . . . Trap Hack Attempts . | . . . . . . . . . Triggered . | . . . . . . . . . Disarmed 6 | . . . . . 6 . . . Reprogrammed . | . . . . . . . . . Reused . | . . . . . . . . . Traps Extracted . | . . . . . . . . . Installed . | . . . . . . . . . Triggered . | . . . . . . . . . Machines | -11 -10 -10 -10 -9 -8 -8 -7 -7 ---------- Run | Scr Mat Min Exi Min Mat Gar Fac Gar Machines Disabled 3 | . . . . 1 2 . . . Max in Single Turn 1 | . . . . 1 1 . . . Machines Sabotaged . | . . . . . . . . . Garrisons Compromised . | . . . . . . . . . Overloaded Fab Kills . | . . . . . . . . . Fab Network Shutdowns . | . . . . . . . . . Hacking | -11 -10 -10 -10 -9 -8 -8 -7 -7 --------- Run | Scr Mat Min Exi Min Mat Gar Fac Gar Machines Accessed 13 | . 3 1 5 . 3 . 1 . Terminals 5 | . 2 1 . . 2 . . . Fabricators . | . . . . . . . . . Repair Stations . | . . . . . . . . . Recycling Units 1 | . 1 . . . . . . . Scanalyzers . | . . . . . . . . . Garrison Access 2 | . . . . . 1 . 1 . Total Hacks 75 | . 10 3 50 . 10 . 2 . Successful 65 | . 5 1 50 . 7 . 2 . Failed 10 | . 5 2 . . 3 . . . Catastrophic . | . . . . . . . . . Database Lockouts . | . . . . . . . . . Manual 3 | . . . 3 . . . . . Terminals 17 | . 6 3 . . 8 . . . Fabricators . | . . . . . . . . . Repair Stations . | . . . . . . . . . Recycling Units 4 | . 4 . . . . . . . Scanalyzers . | . . . . . . . . . Garrison Access 4 | . . . . . 2 . 2 . Terminal Hacks 58 | . 2 1 50 . 5 . . . Record 50 | . 1 . 49 . . . . . Robot Analysis 1 | . 1 . . . . . . . Prototype ID Bank 1 | . . . . . 1 . . . Disarm Traps 1 | . . . . . 1 . . . Dispatch Records 1 | . . . . . 1 . . . Patrol Status 1 | . . . . . 1 . . . Registered Prototypes 1 | . . . . . 1 . . . Zone Layout 1 | . . 1 . . . . . . EX-Prototype ID Bank 1 | . . . 1 . . . . . Fabricator Hacks . | . . . . . . . . . Repair Station Hacks . | . . . . . . . . . Recycling Unit Hacks 3 | . 3 . . . . . . . Process 1 | . 1 . . . . . . . Report Inventory 1 | . 1 . . . . . . . Retrieve Components 1 | . 1 . . . . . . . Scanalyzer . | . . . . . . . . . Garrison Access Hacks 4 | . . . . . 2 . 2 . Unlock Access 2 | . . . . . 1 . 1 . Coupler Status 2 | . . . . . 1 . 1 . Unauthorized Hacks . | . . . . . . . . . Terminals . | . . . . . . . . . Fabricators . | . . . . . . . . . Repair Stations . | . . . . . . . . . Recycling Units . | . . . . . . . . . Scanalyzers . | . . . . . . . . . Garrison Access . | . . . . . . . . . Data Cores Recovered 1 | . . . . . 1 . . . Used . | . . . . . . . . . Hacking Detections 8 | . 3 1 . . 3 . 1 . Full Trace Events . | . . . . . . . . . Feedback Events . | . . . . . . . . . Feedback Blocked . | . . . . . . . . . Robot Schematics Acquired . | . . . . . . . . . Robots Built . | . . . . . . . . . Matter . | . . . . . . . . . Time . | . . . . . . . . . Total Robot Build Rating . | . . . . . . . . . Part Schematics Acquired . | . . . . . . . . . Parts Built . | . . . . . . . . . Matter . | . . . . . . . . . Time . | . . . . . . . . . Total Part Build Rating . | . . . . . . . . . Parts Repaired . | . . . . . . . . . Time . | . . . . . . . . . Parts Recycled . | . . . . . . . . . Recycled Matter 1 | . 1 . . . . . . . Retrieved Matter . | . . . . . . . . . Retrieved Components . | . . . . . . . . . Parts Scanalyzed . | . . . . . . . . . Part Schematics Acquired . | . . . . . . . . . Parts Damaged . | . . . . . . . . . Bothacking | -11 -10 -10 -10 -9 -8 -8 -7 -7 ------------ Run | Scr Mat Min Exi Min Mat Gar Fac Gar Used RIF Installer 1 | . . . . . . 1 . . Robots Hacked . | . . . . . . . . . Non-combat . | . . . . . . . . . Combat . | . . . . . . . . . Robot Hacks Applied . | . . . . . . . . . Relay Couplers Released . | . . . . . . . . . Robots Rewired . | . . . . . . . . . Allies Hacked . | . . . . . . . . . Hacks Repelled . | . . . . . . . . . Allies | -11 -10 -10 -10 -9 -8 -8 -7 -7 -------- Run | Scr Mat Min Exi Min Mat Gar Fac Gar Total Allies 3 | . . 2 . 1 . . . . Largest Group 2 | . . 2 . 1 . . . . Highest-Rated Group 46 | . . 46 . 31 . . . . Highest-Rated Ally 31 | . . 31 . 31 . . . . Total Orders . | . . . . . . . . . Ally Attacks 2 | . . 1 . 1 . . . . Total Damage 42 | . . 20 . 22 . . . . Kills 2 | . . 1 . 1 . . . . Allies Corrupted . | . . . . . . . . . Allies Melted . | . . . . . . . . . Intel | -11 -10 -10 -10 -9 -8 -8 -7 -7 ------- Run | Scr Mat Min Exi Min Mat Gar Fac Gar Robot Analysis Total 1 | . 1 . . . . . . . Derelict Logs Recovered 3 | . . 1 . 2 . . . . Drone Launches . | . . . . . . . . . Drone Recoveries . | . . . . . . . . . Exploration | -11 -10 -10 -10 -9 -8 -8 -7 -7 ------------- Run | Scr Mat Min Exi Min Mat Gar Fac Gar Turns Passed 6151 | 93 245 838 1348 792 709 1332 63 731 Spaces Moved 3521 | 50 125 491 839 488 364 827 36 301 Core 61 | 3 . . . . . . . 58 Treads 3402 | 47 125 491 839 488 364 827 36 185 Legs 58 | . . . . . . . . 58 Wheels . | . . . . . . . . . Hover . | . . . . . . . . . Flight . | . . . . . . . . . Fastest Speed 50 | 50 160 160 160 160 155 155 155 50 Average Speed 157 | 153 160 160 160 160 155 155 155 149 Slowest Speed 650 | 160 160 160 160 160 160 155 155 650 Overloaded Moves . | . . . . . . . . . Propulsion Burnouts . | . . . . . . . . . Robots Hopped . | . . . . . . . . . Cave-ins Triggered . | . . . . . . . . . Exploration Rate (%) 47 | 5 21 71 93 98 32 83 1 19 Regions Visited 8 Branch Regions 3 Pre-discovered Areas 2 | . . . 1 1 . . . . Known Exits Taken 2 | . . . . . 1 . 1 . Unknown Exits Taken 5 | 1 1 1 1 1 . . . . Scrap Searched . | . . . . . . . . . Spaces Dug . | . . . . . . . . . Terrain Destroyed 86 | . . 10 . . 36 7 . 33 Melee . | . . . . . . . . . Projectile 49 | . . . . . 36 7 . 6 AOE 37 | . . 10 . . . . . 27 Terrain Rammed . | . . . . . . . . . Walls Destroyed . | . . . . . . . . . Machines Disabled . | . . . . . . . . . Actions | -11 -10 -10 -10 -9 -8 -8 -7 -7 --------- Run | Scr Mat Min Exi Min Mat Gar Fac Gar Total 4023 | 65 147 518 845 501 497 853 43 554 Wait 288 | 6 . . . 5 90 . . 187 Move 3512 | 49 124 490 838 487 363 825 35 301 Hop . | . . . . . . . . . Pick Up 45 | 6 5 6 3 3 11 1 3 7 Fast Attach 7 | 2 . . . . 2 . . 3 Attach 30 | 2 4 2 . 1 5 . 3 13 Detach 3 | . . . . . . . . 3 Swap 16 | . . 2 2 1 6 1 1 3 Drop 27 | . 2 3 2 4 9 1 1 5 Fire 81 | . 12 15 . . 11 25 . 18 Melee . | . . . . . . . . . Ram 10 | . . . . . . . . 10 Kick 4 | . . . . . . . . 4 Crush . | . . . . . . . . . Escape Stasis . | . . . . . . . . . Rewire . | . . . . . . . . . Trap . | . . . . . . . . . Miscellaneous . | . . . . . . . . . Route ------- -11/Scrapyard -10/Materials -10/Mines -10/Exiles -9/Mines (discovered 2 exits: *Mat x2) -8/Materials -8/Garrison (discovered 3 exits: *Fac x3) -7/Factory -7/Garrison History --------- Turn | Location | Event 5 | -11/Scrapyard | Discovered new exit (range 16) 94 | -11/Scrapyard | Entered Materials 254 | -10/Materials | Discovered new exit (range 14) 313 | -10/Materials | Build established: Mutant 339 | -10/Materials | Entered Mines 352 | -10/Mines | Joined a pair of Derelicts in attacking an 0b10 outpost 466 | -10/Mines | Assembled infested the area 481 | -10/Mines | Met 8R-AWN 516 | -10/Mines | Learned Materials trap positions 679 | -10/Mines | Discovered new exit (range 5) 947 | -10/Mines | Received a Rocket Launcher from a helpful Derelict 1142 | -10/Mines | Core integrity fell below 50% 1148 | -10/Mines | Core integrity fell below 20% 1177 | -10/Mines | Entered Exiles 1223 | -10/Exiles | Welcomed by 8R-AWN 1254 | -10/Exiles | Met EX-HEX 1327 | -10/Exiles | Met EX-DEC 1447 | -10/Exiles | Learned location of Zion (-7) 1674 | -10/Exiles | Discovered new exit (range 14) 1781 | -10/Exiles | Met EX-BIN 2038 | -10/Exiles | Visited The Gauntlet 2276 | -10/Exiles | Aligned with FarCom system 2277 | -10/Exiles | Given EX-Vault access code 2316 | -10/Exiles | Opened EX-Vault 2329 | -10/Exiles | Found AWS/Gauss 2365 | -10/Exiles | Warned to stay clear of 0b10 Research branches 2525 | -10/Exiles | Left Exiles lab with AWS/Gauss 2525 | -10/Exiles | Entered Mines 2563 | -9/Mines | Learned Materials machine intel 2673 | -9/Mines | Discovered new exit (range 10) 2673 | -9/Mines | Discovered new exit (range 5) 2910 | -9/Mines | Received a Mining Laser from a helpful Derelict 3317 | -9/Mines | Entered Materials 3317 | -8/Materials | Evolved 4 slots: Propulsion x1, Utility x2, Weapon x1 3318 | -8/Materials | Loaded intel: 23 trap records 3319 | -8/Materials | Loaded intel: 60 machine locations 3850 | -8/Materials | Build established: Skirmisher 3856 | -8/Materials | Garrison activated, responded to threat 3953 | -8/Materials | Identified exit to Garrison 4026 | -8/Materials | Entered Garrison 4222 | -8/Garrison | Discovered new exit (range 12) 4251 | -8/Garrison | Installed Relay Interface Framework 4308 | -8/Garrison | Triggered checkpoint 4558 | -8/Garrison | Triggered checkpoint 4615 | -8/Garrison | Discovered new exit (range 13) 4730 | -8/Garrison | Triggered checkpoint 4782 | -8/Garrison | Triggered checkpoint 4843 | -8/Garrison | Discovered new exit (range 10) 5090 | -8/Garrison | Triggered checkpoint 5224 | -8/Garrison | Triggered checkpoint 5358 | -8/Garrison | Entered Factory 5358 | -7/Factory | Evolved 2 slots: Utility x1, Weapon x1 5408 | -7/Factory | Identified exit to Garrison 5421 | -7/Factory | Entered Garrison 5528 | -7/Garrison | Lost 10 parts (2p4n1u3w) 6026 | -7/Garrison | Core integrity fell below 50% 6045 | -7/Garrison | Lost 7 parts (2n1u4w) 6070 | -7/Garrison | Core integrity fell below 20% 6144 | -7/Garrison | Triggered checkpoint 6152 | -7/Garrison | Destroyed by G-47 Trooper with Particle Gun Last Messages --------------- 06049_ Imp. Heat Sink temporarily disabled. 06049_ Adv. Visual Processing Unit temporarily disabled. 06050_ Slammed into S-27 Virus. 06051_ S-27 Virus destroyed. 06052_ Acquired 29 matter. 06056_ Slammed into G-47 Trooper. 06059_ G-47 Trooper destroyed. 06060_ Acquired 59 matter. 06061_ Acquired Lgt. Nuclear Core. 06067_ Dropped Imp. Heat Sink. 06074_ Acquired Aluminum Leg. 06084_ Acquired 30 matter. 06098_ Lgt. Nuclear Core destroyed. 06117_ Kicked S-27 Virus out of the way. 06144_ Beams of light sweep through the air. An alarm sounds. 06147_ Kicked G-47 Trooper out of the way. 06148_ Slammed into G-47 Trooper. 06150_ Aluminum Leg destroyed. 06150_ Slammed into G-47 Trooper. [Achievement: Just Browsing] Map ----- +----------------------------------------------------+ | ????????# #??????????## ###??????????????????? | | ????????# #??????????#!! !#??????????????????? | | ????????# #??????????#! !#??????????????????? | | ????????# #??????????#! !#??????????????????? | | ????????# #??????????#! !#??????????????????? | | ????????###??????????## ##??????????????????? | | ???????? #???????????# #???????????????????? | | ????????# #?????????### ###?????????????????? | | ????????# #?????????# # # ##????#####???????? | | ??????# #?????????# # ###??# #???????? | | ###### ########### /# #### #???????? | | #???????? | | #???????? | | ! #???????? | | ######### ########### # ###### ##???????? | | ????????# #?????????### # ####???###????????? | | ????????# #??????????#######?????????????????? | | ????????# #??????????????????????????????????? | | ????????# #??????????????????????????????????? | | ????????# #??????????????????????????????????? | | ????????# #??????????????????????????????????? | | ????????# #??????????????????????????????????? | | ????????# #??????????????????????????????????? | | ????????# #??????????????????????????????????? | | ????????# ########################???????????? | | ????????# s @ +?????????? | | ????????# #####"""#####ggg#####"""???????????? | | ????????# #??????C????# #????sss???????????? | | ????????# #???????????#####??????????????????? | | ??#####?# #??????????????????????????????????? | | ??#"""#?# #??????????????????????????????????? | | ??#" ### #??????????????????????????????????? | | ??#" #??????????????????????????????????? | | ??#" #####??????????????????????????????????? | | ??#" #??????????????????????????????????????? | | ??#"""#??????????????????????????????????????? | | ??#####??????????????????????????????????????? | | ?????????????????????????????????????????????? | | ?????????????????????????????????????????????? | | ?????????????????????????????????????????????? | | ?????????????????????????????????????????????? | | ?????????????????????????????????????????????? | | ?????????????????????????????????????????????? | | | | | | | | | | | | | | | +----------------------------------------------------+ Best States ------------- Heat Dissipation 48 Energy Generation 18 Energy Capacity 250 Matter Stores 300 Matter Capacity 300 Sight Range 20 Terrain Scan Density 10 ECM Strength 1 Armor Coverage 225 Power Shielding 33 Evasion (%) 50 Targeting Accuracy 5 Recoil Reduction 3 Offensive Hacking 10 Item Schematics ----------------- None Robot Schematics ------------------ None Fabricated ------------ Nothing Alien Tech Used ----------------- None Achievements -------------- I Survived The Infestation Just Browsing Challenges ------------ None Game ------ Seed ThunderCentriumRigger Manual? 0 Play Time 01:20:51 Cumulative 14.6 hours Start 2022.01.10 @ 22:55:25 End 2022.01.11 @ 20:14:33 Sessions 3 Manual Loads 0 Difficulty Rogue Special Mode None Game No. 13 Rogue 13 Adventurer 0 Explorer 0 Win Type - Total 0 Types 0/0/0/0/0/0/0/0/0 Lore% 16 Gallery% 25 Achievement% 16 Wizard Run 0 Options --------- ASCII 0 Keyboard 0 Movement Mouse Keybinds 0 Fullscreen 1 Font 18/SmallcapsGlow Map View 76x50 Tactical HUD 1 Map Filters NONE Filters NONE Steam 1 RUN: 0a718e7c-6dcd-48f6-ad66-8af217eab6ad